fUSD/lending_fUSD_20250514
["ID","MTS","AMOUNT","RATE_DAILY","PERIOD"]
[361000661,1747191046881,-400.0,0.00010958,2]
[361000662,1747191046890,-400.0,0.00010958,2]
[361000663,1747191046899,-400.0,0.00010958,2]
[361000664,1747191046908,-400.0,0.00010958,2]
[361000665,1747191046918,-400.0,0.00010958,2]
[361000666,1747191046929,-916.48,0.00010958,2]
[361000667,1747191046939,-400.0,0.00010958,2]
[361000668,1747191046948,-400.0,0.00010958,2]
[361000669,1747191046957,-3556.24,0.00010958,2]
[361000670,1747191046967,-539.01,0.00010958,2]
[361000671,1747191046976,-400.0,0.00010958,2]
[361000672,1747191046985,-400.0,0.00010958,2]
[361000673,1747191046995,-400.0,0.00010958,2]
[361000674,1747191047004,-400.0,0.00010958,2]
[361000675,1747191047014,-282.022629,0.00010958,2]
[361000676,1747191047024,-421.03514072,0.00010958,2]
[361000677,1747191047035,-400.0,0.00010958,2]
[361000678,1747191047046,-408.2917425,0.00010958,2]
[361000679,1747191047055,-400.0,0.00010958,2]
[361000680,1747191047064,-400.0,0.00010958,2]
[361000681,1747191047074,-837.67,0.00010958,2]
[361000682,1747191047085,-454.41,0.00010958,2]
[361000683,1747191047099,-608.0,0.00010958,2]
[361000684,1747191047111,-400.0,0.00010958,2]
[361000685,1747191047120,-400.0,0.00010958,2]
[361000686,1747191047129,-400.0,0.00010958,2]
[361000687,1747191047139,-400.0,0.00010958,2]
[361000688,1747191047151,-400.0,0.00010958,2]
[361000689,1747191047160,-400.0,0.00010958,2]
[361000690,1747191047170,-400.0,0.00010958,2]
[361000691,1747191047179,-406.82222182,0.00010958,2]
[361000692,1747191047188,-400.0,0.00010958,2]
[361000693,1747191047199,-1383.76,0.00010958,2]
[361000694,1747191047215,-947.83,0.00010958,2]
[361000695,1747191047224,-1838.45,0.00010958,2]
[361000696,1747191047233,-492.22,0.00010958,2]
[361000697,1747191047243,-499.8,0.00010958,2]
[361000698,1747191047252,-400.0,0.00010958,2]
[361000699,1747191047405,-400.0,0.00010958,2]
[361000700,1747191047414,-400.0,0.00010958,2]
[361000701,1747191047423,-400.0,0.00010958,2]
[361000702,1747191047433,-400.0,0.00010958,2]
[361000703,1747191047442,-269.75545198,0.00010958,2]
[361000704,1747191047451,-400.0,0.00010958,2]
[361000705,1747191047461,-418.27318196,0.00010958,2]
[361000706,1747191047470,-400.0,0.00010958,2]
[361000707,1747191047479,-3164.98,0.00010958,2]
[361000708,1747191047489,-455.3770939,0.00010958,2]
[361000709,1747191047499,-741.4,0.00010958,2]
[361000710,1747191047510,-400.0,0.00010958,2]
[361000711,1747191047519,-400.77697481,0.00010958,2]
[361000712,1747191047529,-400.0,0.00010958,2]
[361000713,1747191047539,-713.35,0.00010958,2]
[361000714,1747191047548,-400.0,0.00010958,2]
[361000715,1747191047557,-400.0,0.00010958,2]
[361000716,1747191047567,-430.0,0.00010958,2]
[361000717,1747191047577,-400.0,0.00010958,2]
[361000718,1747191047586,-400.0,0.00010958,2]
[361000719,1747191047595,-400.0,0.00010958,2]
[361000720,1747191047604,-1424.8,0.00010958,2]
[361000721,1747191047613,-400.0,0.00010958,2]
[361000722,1747191047622,-400.0,0.00010958,2]
[361000723,1747191047631,-8778.5,0.00010958,2]
[361000724,1747191047641,-400.0,0.00010958,2]
[361000725,1747191047649,-400.0,0.00010958,2]
[361000726,1747191047658,-400.0,0.00010958,2]
[361000727,1747191047667,-400.0,0.00010958,2]
[361000728,1747191047676,-400.0,0.00010958,2]
[361000729,1747191047685,-400.0,0.00010958,2]
[361000730,1747191047694,-400.0,0.00010958,2]
[361000731,1747191047703,-2616.18,0.00010958,2]
[361000732,1747191047712,-400.0,0.00010958,2]
[361000733,1747191047721,-4500.63,0.00010958,2]
[361000734,1747191047730,-400.0,0.00010958,2]
[361000735,1747191047739,-400.0,0.00010958,2]
[361000736,1747191047748,-449.11,0.00010958,2]
[361000737,1747191047759,-400.0,0.00010958,2]
[361000738,1747191047768,-500.0,0.00010958,2]
[361000739,1747191047778,-409.19027887,0.00010958,2]
[361000740,1747191047787,-400.0,0.00010958,2]
[361000741,1747191047796,-400.0,0.00010958,2]
[361000742,1747191047805,-400.0,0.00010958,2]
[361000743,1747191047814,-400.0,0.00010958,2]
[361000744,1747191047823,-400.0,0.00010958,2]
[361000745,1747191047832,-9368.56,0.00010958,2]
[361000746,1747191047841,-400.0,0.00010958,2]
[361000747,1747191047850,-416.492402,0.00010958,2]
[361000748,1747191047859,-400.0,0.00010958,2]
[361000749,1747191047867,-496.71,0.00010958,2]
[361000750,1747191047877,-416.40351943,0.00010958,2]
[361000751,1747191047887,-679.57,0.00010958,2]
[361000752,1747191047896,-980.45,0.00010958,2]
[361000753,1747191047905,-400.0,0.00010958,2]
[361000754,1747191047914,-523.52,0.00010958,2]
[361000755,1747191047928,-1655.08,0.00010958,2]
[361000756,1747191047938,-4708.14,0.00010958,2]
[361000757,1747191047947,-400.0,0.00010958,2]
[361000758,1747191047958,-679.26,0.00010958,2]
[361000759,1747191047972,-1036.02,0.00010958,2]
[361000760,1747191047981,-400.0,0.00010958,2]
[361000761,1747191047998,-5784.72,0.00010958,2]
[361000762,1747191048008,-530.09124992,0.00010958,2]
[361000763,1747191048017,-420.01,0.00010958,2]
[361000764,1747191048027,-9198.26,0.00010958,2]
[361000765,1747191048036,-3592.96,0.00010958,2]
[361000766,1747191048046,-578.8,0.00010958,2]
[361000767,1747191048055,-400.0,0.00010958,2]
[361000768,1747191048064,-400.0,0.00010958,2]
[361000769,1747191048073,-400.0,0.00010958,2]
[361000770,1747191048083,-474.84444361,0.00010958,2]
[361000771,1747191048093,-400.0,0.00010958,2]
[361000772,1747191048102,-419.21,0.00010958,2]
[361000773,1747191048112,-1491.23,0.00010958,2]
[361000774,1747191048121,-1379.49,0.00010958,2]
[361000775,1747191048130,-1314.98,0.00010958,2]
[361000776,1747191048139,-400.8435028,0.00010958,2]
[361000777,1747191048149,-836.21,0.00010958,2]
[361000778,1747191048158,-400.0,0.00010958,2]
[361000779,1747191048168,-400.0,0.00010958,2]
[361000780,1747191048178,-406.25058491,0.00010958,2]
[361000781,1747191048189,-1979.32,0.00010958,2]
[361000782,1747191048198,-400.0,0.00010958,2]
[361000783,1747191048208,-465.42,0.00010958,2]
[361000784,1747191048218,-400.0,0.00010958,2]
[361000785,1747191048228,-400.0,0.00010958,2]
[361000786,1747191048237,-545.9,0.00010958,2]
[361000787,1747191048247,-400.0,0.00010958,2]
[361000788,1747191048256,-30692.19,0.00010958,2]
[361000789,1747191048266,-400.0,0.00010958,2]
[361000790,1747191048276,-404.85,0.00010958,2]
[361000791,1747191048285,-400.0,0.00010958,2]
[361000792,1747191048295,-400.0,0.00010958,2]
[361000793,1747191048304,-400.60212593,0.00010958,2]
[361000794,1747191048314,-1000.0,0.00010958,2]
[361000795,1747191048323,-663.26,0.00010958,2]
[361000796,1747191048333,-400.0,0.00010958,2]
[361000797,1747191048343,-401.13736521,0.00010958,2]
[361000798,1747191048352,-1020.79,0.00010958,2]
[361000799,1747191048363,-400.0,0.00010958,2]
[361000800,1747191048372,-400.0,0.00010958,2]
[361000801,1747191048381,-697.31,0.00010958,2]
[361000802,1747191048391,-400.0,0.00010958,2]
[361000803,1747191048400,-400.0,0.00010958,2]
[361000804,1747191048410,-400.0,0.00010958,2]
[361000805,1747191048419,-665.75,0.00010958,2]
[361000806,1747191048428,-508.36,0.00010958,2]
[361000807,1747191048437,-400.0,0.00010958,2]
[361000808,1747191048447,-400.0,0.00010958,2]
[361000809,1747191048456,-400.0,0.00010958,2]
[361000810,1747191048465,-400.0,0.00010958,2]
[361000811,1747191048474,-400.0,0.00010958,2]
[361000812,1747191048483,-400.0,0.00010958,2]
[361000813,1747191048493,-427.98,0.00010958,2]
[361000814,1747191048502,-441.01,0.00010958,2]
[361000815,1747191048512,-401.10759723,0.00010958,2]
[361000816,1747191048521,-847.44,0.00010958,2]
[361000817,1747191048531,-1258.8,0.00010958,2]
[361000818,1747191048540,-412.97124452,0.00010958,2]
[361000819,1747191048549,-400.0,0.00010958,2]
[361000820,1747191048558,-400.0,0.00010958,2]
[361000821,1747191048567,-400.0,0.00010958,2]
[361000822,1747191048577,-400.0,0.00010958,2]
[361000823,1747191048586,-2009.93,0.00010958,2]
[361000824,1747191048595,-1365.81,0.00010958,2]
[361000825,1747191048604,-400.0,0.00010958,2]
[361000826,1747191048613,-400.0,0.00010958,2]
[361000827,1747191048622,-408.90697305,0.00010958,2]
[361000828,1747191048632,-797.01,0.00010958,2]
[361000829,1747191048643,-400.0,0.00010958,2]
[361000830,1747191048652,-400.0,0.00010958,2]
[361000831,1747191048660,-400.0,0.00010958,2]
[361000832,1747191048670,-645.06,0.00010958,2]
[361000833,1747191048679,-400.0,0.00010958,2]
[361000834,1747191048688,-400.0,0.00010958,2]
[361000835,1747191048697,-4338.6,0.00010958,2]
[361000836,1747191048706,-1404.27,0.00010958,2]
[361000837,1747191048715,-400.0,0.00010958,2]
[361000838,1747191048724,-400.0,0.00010958,2]
[361000839,1747191048733,-400.0,0.00010958,2]
[361000840,1747191048742,-815.93,0.00010958,2]
[361000841,1747191048752,-400.0,0.00010958,2]
[361000842,1747191048762,-400.0,0.00010958,2]
[361000843,1747191048771,-500.0,0.00010958,2]
[361000844,1747191048780,-500.0,0.00010958,2]
[361000845,1747191048790,-400.0,0.00010958,2]
[361000846,1747191048799,-400.0,0.00010958,2]
[361000847,1747191048809,-400.0,0.00010958,2]
[361000848,1747191048818,-1878.06,0.00010958,2]
[361000849,1747191048827,-400.0,0.00010958,2]
[361000850,1747191048837,-500.0,0.00010959,2]
[361000851,1747191048846,-500.0,0.00010959,2]
[361000852,1747191048856,-500.0,0.00010959,2]
[361000853,1747191048865,-500.0,0.00010959,2]
[361000854,1747191048875,-500.0,0.00010959,2]
[361000855,1747191048883,-500.0,0.00010959,2]
[361000856,1747191048892,-500.0,0.00010959,2]
[361000857,1747191048902,-500.0,0.00010959,2]
[361000858,1747191048911,-500.0,0.00010959,2]
[361000859,1747191048923,-233.32578971,0.00010959,2]
[361000860,1747191048933,-500.0,0.00010973,2]
[361000861,1747191048943,-500.0,0.00010973,2]
[361000862,1747191048954,-500.0,0.00010973,2]
[361000863,1747191048964,-501.53009174,0.00010973,2]
[361000864,1747191048973,-500.0,0.00010973,2]
[361000865,1747191048982,-501.26381832,0.00010973,2]
[361000866,1747191048991,-169.66121957,0.00010973,2]
[361000867,1747191049002,-500.0,0.00010973,2]
[361000868,1747191049012,-500.0,0.00010973,2]
[361000869,1747191049021,-500.0,0.00010973,2]
[361000870,1747191049030,-500.0,0.00010973,2]
[361000871,1747191049039,-500.0,0.00010973,2]
[361000872,1747191049049,-500.0,0.00010973,2]
[361000873,1747191049059,-286.51865033,0.00010973,2]
[361000874,1747191049068,-597.47990044,0.00010973,2]
[361000875,1747191049078,-502.26197616,0.00010973,2]
[361000876,1747191049089,-1670.47,0.00010977,2]
[361000877,1747191049099,-174.1315286,0.00010977,2]
[361000878,1747191049109,-5076.4279044,0.00010994,2]
[361000879,1747191049118,-500.0,0.00010994,2]
[361000880,1747191049127,-6647.5399199,0.00010994,2]
[361000881,1747191049136,-15009.8442165,0.00010994,2]
[361000882,1747191049146,-654.8970845,0.00010994,2]
[361000883,1747191049156,-1872.489888,0.00010994,2]
[361000884,1747191049165,-6246.4035022,0.00010994,2]
[361000885,1747191049174,-77922.994056,0.00010994,2]
[361000886,1747191049183,-511.80883241,0.00010997,2]
[361000887,1747191049193,-565.95,0.00010997,2]
[361000888,1747191049203,-500.0,0.00010997,2]
[361000889,1747191049212,-1000.0,0.00010999,2]
[361000890,1747191049222,-565.95,0.00010999,2]
[361000891,1747191049232,-565.95,0.00010999,2]
[361000892,1747191049241,-565.95,0.00010999,2]
[361000893,1747191049251,-565.95,0.00010999,2]
[361000894,1747191049262,-565.95,0.00010999,2]
[361000895,1747191049272,-565.95,0.00010999,2]
[361000896,1747191049282,-565.95,0.00010999,2]
[361000897,1747191049291,-565.95,0.00010999,2]
[361000898,1747191049300,-565.95,0.00010999,2]
[361000899,1747191049310,-565.95,0.00010999,2]
[361000900,1747191049319,-565.95,0.00010999,2]
[361000901,1747191049329,-565.95,0.00010999,2]
[361000902,1747191049338,-565.95,0.00010999,2]
[361000903,1747191049348,-565.95,0.00010999,2]
[361000904,1747191049358,-565.95,0.00010999,2]
[361000905,1747191049368,-565.95,0.00010999,2]
[361000906,1747191049378,-565.95,0.00010999,2]
[361000907,1747191049388,-565.95,0.00010999,2]
[361000908,1747191049397,-565.95,0.00010999,2]
[361000909,1747191049406,-565.95,0.00010999,2]
[361000910,1747191049416,-566.01767067,0.00010999,2]
[361000911,1747191049425,-500.0,0.00010999,2]
[361000912,1747191049435,-500.0,0.00010999,2]
[361000913,1747191049444,-500.0,0.00010999,2]
[361000914,1747191049454,-500.0,0.00010999,2]
[361000915,1747191049463,-500.0,0.00010999,2]
[361000916,1747191049472,-500.0,0.00010999,2]
[361000917,1747191049482,-500.0,0.00010999,2]
[361000918,1747191049491,-500.0,0.00010999,2]
[361000919,1747191049501,-500.0,0.00010999,2]
[361000920,1747191049511,-500.0,0.00010999,2]
[361000921,1747191049520,-390.21976913,0.00010999,2]
[361000922,1747191049530,-34386.56,0.00010999,2]
[361000923,1747191049539,-500.0,0.00010999,2]
[361000924,1747191049549,-500.0,0.00010999,2]
[361000925,1747191049558,-500.0,0.00010999,2]
[361000926,1747191049567,-500.0,0.00010999,2]
[361000927,1747191049577,-500.0,0.00010999,2]
[361000928,1747191049587,-500.0,0.00010999,2]
[361000929,1747191049596,-500.0,0.00010999,2]
[361000930,1747191049605,-500.0,0.00010999,2]
[361000931,1747191049614,-500.0,0.00010999,2]
[361000932,1747191049623,-500.0,0.00010999,2]
[361000933,1747191049632,-500.0,0.00010999,2]
[361000934,1747191049642,-500.0,0.00010999,2]
[361000935,1747191049651,-500.0,0.00010999,2]
[361000936,1747191049660,-500.0,0.00010999,2]
[361000937,1747191049669,-500.0,0.00010999,2]
[361000938,1747191049678,-445.72009074,0.00010999,2]
[361000939,1747191049687,-300.0,0.00010999,2]
[361000940,1747191049696,-300.0,0.00010999,2]
[361000941,1747191049705,-688.0,0.00010999,2]
[361000942,1747191049714,-256.62845276,0.00011,2]
[361000943,1747191049723,-215591.17262977,0.00011,2]
[361000944,1747191050372,-1037.99999985,0.00011,2]
[361000945,1747191050398,-400.0,0.00010958,2]
[361000946,1747191050407,-1176.03418905,0.00011,2]
[361000947,1747191050427,-18417.36307074,0.00011,2]
[361000948,1747191051039,-15812.87343347,0.00011,2]
[361000949,1747191051050,-5507.7438962,0.00011,2]
[361000950,1747191051062,-649.32987711,0.00011,2]
[361000951,1747191051073,-470.0000045,0.00011,2]
[361000952,1747191051084,-1300.0,0.00011,2]
[361000953,1747191051384,-431.22961645,0.00011,2]
[361000954,1747191051396,-4779.62162085,0.00011,2]
[361000955,1747191051407,-6978.70039703,0.00011,2]
[361000956,1747191051419,-2649.37938423,0.00011,2]
[361000957,1747191051433,-40000.0,0.00011,2]
[361000958,1747191051444,-17245.51987534,0.00011,2]
[361000959,1747191272705,941.87,8.219e-05,2]
[361000960,1747191433250,1465.32125778,0.00025,60]
[361000961,1747191433304,1338.26874222,0.00025,60]
[361001235,1747191739380,167.26,7.907e-05,2]
[361001236,1747192155354,1042.68,9.81e-05,2]
[361001241,1747192206486,754.16,9.705e-05,2]
[361001242,1747192231687,-500.0,9.903e-05,2]
[361001243,1747192231697,-500.0,9.903e-05,2]
[361001244,1747192231707,-152.46972554,9.903e-05,2]
[361001245,1747192231717,-200.0,9.91e-05,2]
[361001246,1747192231726,-250.0,9.915e-05,2]
[361001247,1747192231735,-200.0,9.915e-05,2]
[361001248,1747192231744,-200.0,9.947e-05,2]
[361001249,1747192231754,-363.62,9.966e-05,2]
[361001250,1747192231763,-1000.0,9.982e-05,2]
[361001251,1747192231772,-161.29,9.998e-05,2]
[361001252,1747192231782,-212.52027447,0.0001,2]
[361001253,1747192231796,-237.47972553,0.0001,2]
[361001254,1747192231806,-539.59,0.00010006,2]
[361001255,1747192231815,-514.8,0.00010029,2]
[361001256,1747192231825,-1200.0,0.00010165,2]
[361001257,1747192231834,-150.0,0.00010411,2]
[361001258,1747192231844,-207.4,0.00010449,2]
[361001259,1747192231853,-300.0,0.00010477,2]
[361001260,1747192231862,-300.0,0.00010477,2]
[361001261,1747192231871,-941.87,0.00010478,2]
[361001262,1747192231880,-151.0,0.00010708,2]
[361001263,1747192231889,-668.65185757,0.00010708,2]
[361001265,1747192231898,-287.61899177,0.00010708,2]
[361001267,1747192231907,-155.54929039,0.00010858,2]
[361001268,1747192231916,-200.0,0.00010895,2]
[361001270,1747192231925,-200.0,0.00010896,2]
[361001272,1747192231935,-169.84863793,0.000109,2]
[361001274,1747192231944,-777.16735476,0.000109,2]
[361001276,1747192231952,-879.0,0.00010905,2]
[361001278,1747192231961,-1194.918,0.00010905,2]
[361001280,1747192231970,-154.0,0.00010905,2]
[361001282,1747192231979,-123.10614206,0.00010944,2]
[361001302,1747192237440,-1008.52423161,0.00010905,2]
[361001303,1747192237590,-4931.47576839,0.00010905,2]
[361001304,1747192237601,-87.80809334,0.00010944,2]
[361001305,1747192237610,-164.27,0.00010948,2]
[361001306,1747192237620,-164.27,0.00010948,2]
[361001307,1747192237629,-290.83024007,0.00010957,2]
[361001308,1747192237639,-627.90834129,0.00010957,2]
[361001310,1747192237648,-150.0,0.00010957,2]
[361001311,1747192237657,-400.0,0.00010958,2]
[361001312,1747192237666,-400.0,0.00010958,2]
[361001313,1747192237675,-400.0,0.00010958,2]
[361001314,1747192237685,-400.0,0.00010958,2]
[361001315,1747192237694,-434.08,0.00010958,2]
[361001317,1747192237704,-400.0,0.00010958,2]
[361001319,1747192237713,-215.78726726,0.00010958,2]
[361001321,1747192237722,-400.0,0.00010958,2]
[361001323,1747192237731,-400.0,0.00010958,2]
[361001325,1747192237741,-400.0,0.00010958,2]
[361001327,1747192237750,-980.13,0.00010958,2]
[361001329,1747192237761,-400.0,0.00010958,2]
[361001330,1747192237770,-400.0,0.00010958,2]
[361001332,1747192237780,-400.0,0.00010958,2]
[361001334,1747192237789,-400.0,0.00010958,2]
[361001336,1747192237799,-400.0,0.00010958,2]
[361001338,1747192237808,-400.0,0.00010958,2]
[361001340,1747192237818,-400.0,0.00010958,2]
[361001342,1747192237828,-400.0,0.00010958,2]
[361001344,1747192237837,-774.55,0.00010958,2]
[361001346,1747192237847,-400.0,0.00010958,2]
[361001348,1747192237857,-400.0,0.00010958,2]
[361001350,1747192237866,-400.0,0.00010958,2]
[361001352,1747192237875,-400.0,0.00010958,2]
[361001354,1747192237885,-400.0,0.00010958,2]
[361001356,1747192237894,-400.0,0.00010958,2]
[361001358,1747192237903,-400.0,0.00010958,2]
[361001360,1747192237913,-400.0,0.00010958,2]
[361001362,1747192237922,-826.36,0.00010958,2]
[361001364,1747192237931,-434.54,0.00010958,2]
[361001366,1747192237940,-400.0,0.00010958,2]
[361001368,1747192237949,-400.0,0.00010958,2]
[361001370,1747192237958,-400.0,0.00010958,2]
[361001372,1747192237967,-400.0,0.00010958,2]
[361001374,1747192237976,-174.97586477,0.00010958,2]
[361001376,1747192237986,-500.0,0.00010958,2]
[361001377,1747192237995,-500.0,0.00010958,2]
[361001379,1747192238005,-400.0,0.00010958,2]
[361001381,1747192238014,-400.0,0.00010958,2]
[361001383,1747192238024,-400.0,0.00010958,2]
[361001385,1747192238033,-400.0,0.00010958,2]
[361001387,1747192238042,-400.0,0.00010958,2]
[361001389,1747192238051,-1241.4,0.00010958,2]
[361001391,1747192238061,-400.0,0.00010958,2]
[361001393,1747192238070,-1028.61,0.00010958,2]
[361001395,1747192238080,-400.0,0.00010958,2]
[361001396,1747192238089,-616.18,0.00010958,2]
[361001397,1747192238099,-358.0,0.00010958,2]
[361001398,1747192238108,-400.0,0.00010958,2]
[361001399,1747192238118,-252.10110679,0.00010958,2]
[361001400,1747192239625,-147.89889321,0.00010958,2]
[361001401,1747192239635,-400.0,0.00010958,2]
[361001402,1747192239645,-400.0,0.00010958,2]
[361001403,1747192239862,-400.0,0.00010958,2]
[361001404,1747192239875,-400.0,0.00010958,2]
[361001405,1747192239886,-400.0,0.00010958,2]
[361001406,1747192239895,-400.0,0.00010958,2]
[361001407,1747192239906,-400.0,0.00010958,2]
[361001408,1747192239916,-400.0,0.00010958,2]
[361001409,1747192239927,-400.0,0.00010958,2]
[361001410,1747192239936,-787.13,0.00010958,2]
[361001411,1747192239945,-400.0,0.00010958,2]
[361001412,1747192239955,-662.34,0.00010958,2]
[361001413,1747192239964,-897.3,0.00010958,2]
[361001414,1747192239973,-283.08649837,0.00010958,2]
[361001415,1747192239983,-400.0,0.00010958,2]
[361001416,1747192239992,-400.0,0.00010958,2]
[361001417,1747192240002,-400.0,0.00010958,2]
[361001418,1747192240011,-339.20091289,0.00010958,2]
[361001419,1747192240020,-1092.67,0.00010958,2]
[361001420,1747192240030,-400.0,0.00010958,2]
[361001421,1747192240042,-499.0,0.00010958,2]
[361001422,1747192240051,-400.0,0.00010958,2]
[361001423,1747192240062,-400.0,0.00010958,2]
[361001424,1747192240071,-320.11194565,0.00010958,2]
[361001425,1747192240080,-400.0,0.00010958,2]
[361001426,1747192240089,-412.08608588,0.00010958,2]
[361001427,1747192240102,-423.12822437,0.00010958,2]
[361001428,1747192240112,-400.0,0.00010958,2]
[361001429,1747192240122,-400.0,0.00010958,2]
[361001430,1747192240131,-400.0,0.00010958,2]
[361001431,1747192240140,-405.64568501,0.00010958,2]
[361001432,1747192240150,-178.14010293,0.00010958,2]
[361001433,1747192240159,-400.0,0.00010958,2]
[361001434,1747192240168,-1640.97,0.00010958,2]
[361001435,1747192240178,-773.43,0.00010958,2]
[361001436,1747192240187,-457.9881855,0.00010958,2]
[361001437,1747192240197,-400.0,0.00010958,2]
[361001438,1747192240207,-400.0,0.00010958,2]
[361001439,1747192240217,-400.0,0.00010958,2]
[361001440,1747192240227,-979.19,0.00010958,2]
[361001441,1747192240236,-400.0,0.00010958,2]
[361001442,1747192240246,-460.40276636,0.00010958,2]
[361001443,1747192240256,-400.0,0.00010958,2]
[361001444,1747192240265,-400.0,0.00010958,2]
[361001445,1747192240274,-400.0,0.00010958,2]
[361001446,1747192240284,-400.0,0.00010958,2]
[361001447,1747192240294,-400.0,0.00010958,2]
[361001448,1747192240303,-400.0,0.00010958,2]
[361001449,1747192240315,-400.0,0.00010958,2]
[361001450,1747192240324,-400.0,0.00010958,2]
[361001451,1747192240335,-400.0,0.00010958,2]
[361001452,1747192240344,-400.0,0.00010958,2]
[361001453,1747192240354,-812.53,0.00010958,2]
[361001454,1747192240364,-177.38874339,0.00010958,2]
[361001455,1747192240373,-400.0,0.00010958,2]
[361001456,1747192240382,-400.0,0.00010958,2]
[361001457,1747192240393,-400.0,0.00010958,2]
[361001458,1747192240403,-400.0,0.00010958,2]
[361001459,1747192240412,-400.0,0.00010958,2]
[361001460,1747192240421,-798.84,0.00010958,2]
[361001461,1747192240431,-400.0,0.00010958,2]
[361001462,1747192240440,-400.0,0.00010958,2]
[361001463,1747192240449,-400.0,0.00010958,2]
[361001464,1747192240459,-400.0,0.00010958,2]
[361001465,1747192240469,-400.0,0.00010958,2]
[361001466,1747192240478,-400.0,0.00010958,2]
[361001467,1747192240487,-499.36821583,0.00010958,2]
[361001468,1747192240496,-897.48,0.00010958,2]
[361001469,1747192240506,-271.64678039,0.00010958,2]
[361001470,1747192240515,-473.07,0.00010958,2]
[361001471,1747192240525,-400.0,0.00010958,2]
[361001472,1747192240535,-511.2,0.00010958,2]
[361001473,1747192240546,-478.9346606,0.00010958,2]
[361001474,1747192240555,-411.40480197,0.00010958,2]
[361001475,1747192240565,-400.0,0.00010958,2]
[361001476,1747192240575,-617.19,0.00010958,2]
[361001477,1747192240585,-1335.97,0.00010958,2]
[361001479,1747192240596,-400.0,0.00010958,2]
[361001480,1747192240606,-400.0,0.00010958,2]
[361001481,1747192240616,-449.67569219,0.00010958,2]
[361001482,1747192240625,-400.0,0.00010958,2]
[361001483,1747192240635,-400.0,0.00010958,2]
[361001484,1747192240644,-400.0,0.00010958,2]
[361001485,1747192240654,-400.0,0.00010958,2]
[361001486,1747192240664,-400.0,0.00010958,2]
[361001487,1747192240674,-524.28,0.00010958,2]
[361001488,1747192240683,-400.0,0.00010958,2]
[361001489,1747192240693,-158.23802802,0.00010958,2]
[361001490,1747192240702,-400.0,0.00010958,2]
[361001491,1747192240712,-400.0,0.00010958,2]
[361001492,1747192240721,-400.0,0.00010958,2]
[361001493,1747192240730,-749.11,0.00010958,2]
[361001494,1747192240739,-400.0,0.00010958,2]
[361001495,1747192240749,-524.21857298,0.00010958,2]
[361001496,1747192240758,-400.0,0.00010958,2]
[361001497,1747192240768,-400.0,0.00010958,2]
[361001498,1747192240777,-733.15,0.00010958,2]
[361001499,1747192240787,-400.0,0.00010958,2]
[361001500,1747192240798,-400.0,0.00010958,2]
[361001501,1747192240809,-429.97,0.00010958,2]
[361001502,1747192240819,-400.0,0.00010958,2]
[361001503,1747192240830,-827.72,0.00010958,2]
[361001504,1747192240839,-400.0,0.00010958,2]
[361001505,1747192240850,-1074.21,0.00010958,2]
[361001506,1747192240860,-400.0,0.00010958,2]